fUSD/lending_fUSD_20260601
["ID","MTS","AMOUNT","RATE_DAILY","PERIOD"]
[423614422,1780260646000,-160.704819,0.00030685,2]
[423614435,1780260646000,-276.11041174,0.00030685,2]
[423614437,1780260646000,-383.07067648,0.00030685,2]
[423614440,1780260646000,-220.50193854,0.00030685,2]
[423614442,1780260646000,-280.65367727,0.00030685,2]
[423614444,1780260646000,-297.12857491,0.00030685,2]
[423614446,1780260646000,-843.2686041,0.00030685,2]
[423614448,1780260646000,-207.55057899,0.00030685,2]
[423614450,1780260646000,-295.29024967,0.00030685,2]
[423614452,1780260646000,-499.7912367,0.00030685,2]
[423614454,1780260646000,-405.7222995,0.00030685,2]
[423614456,1780260646000,-278.89617453,0.00030685,2]
[423614457,1780260646000,-294.98254049,0.00030685,2]
[423614460,1780260646000,-810.36884873,0.00030685,2]
[423614459,1780260646000,-392.03133769,0.00030685,2]
[423614464,1780260646000,-335.33465425,0.00030685,2]
[423614462,1780260646000,-163.10316335,0.00030685,2]
[423614465,1780260646000,-348.45719882,0.00030685,2]
[423614466,1780260646000,-432.32881614,0.00030685,2]
[423614471,1780260646000,-150.06642712,0.00030685,2]
[423614473,1780260646000,-241.32114498,0.00030685,2]
[423614470,1780260646000,-409.09831736,0.00030685,2]
[423614516,1780260646000,-481.0,0.00030769,30]
[423614501,1780260646000,-452.44357361,0.00030728,2]
[423614515,1780260646000,-387.0,0.00030769,30]
[423614549,1780260646000,-665.2735864,0.00031213,2]
[423614548,1780260646000,-487.8378687,0.00031213,2]
[423614550,1780260646000,-627.37401257,0.00031213,2]
[423614552,1780260646000,-446.36574819,0.00031213,2]
[423614553,1780260646000,-455.25686989,0.00031213,2]
[423614554,1780260646000,-665.3029258,0.00031213,2]
[423614555,1780260646000,-607.31104278,0.00031213,2]
[423614557,1780260646000,-587.79305241,0.00031213,2]
[423614559,1780260646000,-623.12448824,0.00031213,2]
[423614556,1780260646000,-922.1510041,0.00031213,2]
[423614558,1780260646000,-590.10161953,0.00031213,2]
[423614551,1780260646000,-217.5978607,0.00031213,2]
[423614561,1780260646000,-202.51134261,0.00031213,2]
[423614560,1780260646000,-647.61488805,0.00031213,2]
[423614563,1780260646000,-591.83498061,0.00031213,2]
[423614562,1780260646000,-488.25674548,0.00031213,2]
[423614565,1780260646000,-309.13290211,0.00031213,2]
[423614564,1780260646000,-645.42266843,0.00031213,2]
[423614566,1780260646000,-606.39043808,0.00031213,2]
[423614567,1780260646000,-165.70510902,0.00031213,2]
[423614568,1780260646000,-593.71616971,0.00031213,2]
[423614570,1780260646000,-511.20868007,0.00031213,2]
[423614569,1780260646000,-475.51912006,0.00031213,2]
[423614571,1780260646000,-667.64857425,0.00031213,2]
[423614572,1780260646000,-684.16040564,0.00031277,2]
[423614573,1780260646000,-259.05351718,0.00031277,2]
[423614514,1780260646000,-778.0,0.00030748,30]
[423614546,1780260646000,-371.632986,0.000312,7]
[423614544,1780260646000,-160.0,0.000312,7]
[423614574,1780260646000,-647.68351775,0.00031277,2]
[423614545,1780260646000,-211.88,0.000312,7]
[423614517,1780260646000,-265.0,0.00030769,30]
[423614513,1780260646000,-156.0,0.00030748,30]
[423614518,1780260646000,-1097.0,0.00030769,30]
[423614519,1780260646000,-864.0,0.00030769,30]
[423614520,1780260646000,-763.1,0.0003077,7]
[423614521,1780260646000,-340.5,0.000308,7]
[423614523,1780260646000,-621.0,0.00030875,6]
[423614522,1780260646000,-151.0,0.00030849,4]
[423614527,1780260646000,-200.0,0.00031043,2]
[423614531,1780260646000,-3550.0,0.00031089,2]
[423614524,1780260646000,-14897.66,0.000309,2]
[423614534,1780260646000,-932.0,0.00031089,2]
[423614532,1780260646000,-1273.0,0.00031089,2]
[423614525,1780260646000,-11036.98,0.000309,2]
[423614526,1780260646000,-150.0,0.00031011,2]
[423614542,1780260646000,-624.626019,0.00031192,2]
[423614533,1780260646000,-525.0,0.00031089,2]
[423614543,1780260646000,-215.68079694,0.00031192,2]
[423614539,1780260646000,-206.78810334,0.00031192,2]
[423614538,1780260646000,-695.11944697,0.00031192,2]
[423614541,1780260646000,-664.44300755,0.00031192,2]
[423614540,1780260646000,-228.96462127,0.00031192,2]
[423614547,1780260646000,-888.54873643,0.00031213,2]
[423614536,1780260646000,-3653.15798536,0.00031113,7]
[423614535,1780260646000,-200.0,0.00031096,2]
[423614529,1780260646000,-200.0,0.00031043,2]
[423614530,1780260646000,-1356.0,0.00031089,2]
[423614528,1780260646000,-200.0,0.00031043,2]
[423614537,1780260646000,-242.07549863,0.00031192,2]
[423614615,1780260647000,-315.42133647,0.00031277,2]
[423614612,1780260647000,-590.58049934,0.00031277,2]
[423614614,1780260647000,-170.8250504,0.00031277,2]
[423614610,1780260647000,-164.4424265,0.00031277,2]
[423614613,1780260647000,-161.56256408,0.00031277,2]
[423614609,1780260647000,-160.52383582,0.00031277,2]
[423614608,1780260647000,-1124.3581388,0.00031277,2]
[423614607,1780260647000,-594.25714983,0.00031277,2]
[423614606,1780260647000,-168.87080563,0.00031277,2]
[423614617,1780260647000,-431.75728483,0.00031277,2]
[423614611,1780260647000,-415.10115798,0.00031277,2]
[423614602,1780260647000,-413.57620668,0.00031277,2]
[423614629,1780260647000,-310.58641667,0.00031277,2]
[423614618,1780260647000,-608.58344925,0.00031277,2]
[423614616,1780260647000,-666.38831559,0.00031277,2]
[423614620,1780260647000,-557.79234905,0.00031277,2]
[423614621,1780260647000,-167.53519908,0.00031277,2]
[423614623,1780260647000,-588.04700654,0.00031277,2]
[423614622,1780260647000,-589.96508097,0.00031277,2]
[423614625,1780260647000,-503.00198137,0.00031277,2]
[423614627,1780260647000,-648.49322422,0.00031277,2]
[423614626,1780260647000,-522.68579823,0.00031277,2]
[423614624,1780260647000,-326.20632669,0.00031277,2]
[423614630,1780260647000,-748.39402324,0.00031277,2]
[423614628,1780260647000,-164.99594136,0.00031277,2]
[423614603,1780260647000,-178.15740495,0.00031277,2]
[423614619,1780260647000,-168.89801685,0.00031277,2]
[423614605,1780260647000,-457.92924254,0.00031277,2]
[423614587,1780260647000,-321.409638,0.00031277,2]
[423614601,1780260647000,-441.00387709,0.00031277,2]
[423614632,1780260647000,-613.64747604,0.00031277,2]
[423614583,1780260647000,-222.40384719,0.00031277,2]
[423614584,1780260647000,-214.12801187,0.00031277,2]
[423614582,1780260647000,-167.95156274,0.00031277,2]
[423614577,1780260647000,-346.61684002,0.00031277,2]
[423614575,1780260647000,-483.87140719,0.00031277,2]
[423614576,1780260647000,-431.03525729,0.00031277,2]
[423614579,1780260647000,-212.80508935,0.00031277,2]
[423614578,1780260647000,-518.10703436,0.00031277,2]
[423614580,1780260647000,-333.91838698,0.00031277,2]
[423614581,1780260647000,-411.57344024,0.00031277,2]
[423614586,1780260647000,-595.42523694,0.00031277,2]
[423614604,1780260647000,-561.30735455,0.00031277,2]
[423614585,1780260647000,-468.20471276,0.00031277,2]
[423614594,1780260647000,-552.22082348,0.00031277,2]
[423614595,1780260647000,-165.5789139,0.00031277,2]
[423614589,1780260647000,-656.6348838,0.00031277,2]
[423614593,1780260647000,-534.16016612,0.00031277,2]
[423614590,1780260647000,-588.95952895,0.00031277,2]
[423614591,1780260647000,-775.93639075,0.00031277,2]
[423614592,1780260647000,-484.15099726,0.00031277,2]
[423614597,1780260647000,-157.75957663,0.00031277,2]
[423614596,1780260647000,-170.17613914,0.00031277,2]
[423614599,1780260647000,-574.60601472,0.00031277,2]
[423614598,1780260647000,-168.29590529,0.00031277,2]
[423614600,1780260647000,-168.82067048,0.00031277,2]
[423614588,1780260647000,-572.02407945,0.00031277,2]
[423614635,1780260647000,-384.56370732,0.00031277,2]
[423614634,1780260647000,-431.36159387,0.00031277,2]
[423614637,1780260647000,-657.95120532,0.00031277,2]
[423614667,1780260647000,-2000.0,0.00031407,7]
[423614668,1780260647000,-2000.0,0.00031408,6]
[423614670,1780260647000,-636.09,0.000316,7]
[423614669,1780260647000,-621.0,0.00031409,6]
[423614679,1780260647000,-481.0,0.00031769,30]
[423614672,1780260647000,-1676.44,0.00031632,2]
[423614671,1780260647000,-340.5,0.000316,7]
[423614674,1780260647000,-187.0,0.00031748,30]
[423614675,1780260647000,-151.0,0.00031748,30]
[423614673,1780260647000,-506.0,0.00031748,30]
[423614677,1780260647000,-778.0,0.00031748,30]
[423614676,1780260647000,-354.0,0.00031748,30]
[423614680,1780260647000,-265.0,0.00031769,30]
[423614681,1780260647000,-1097.0,0.00031769,30]
[423614691,1780260647000,-865.83440815,0.0003187,2]
[423614690,1780260647000,-855.20050705,0.0003187,2]
[423614684,1780260647000,-831.591983,0.00031804,2]
[423614682,1780260647000,-864.0,0.00031769,30]
[423614685,1780260647000,-784.21751571,0.00031804,2]
[423614689,1780260647000,-2791.15203548,0.0003186,2]
[423614683,1780260647000,-966.33,0.000318,7]
[423614687,1780260647000,-809.51861006,0.00031804,2]
[423614686,1780260647000,-1152.68875512,0.00031804,2]
[423614688,1780260647000,-151.0,0.00031849,4]
[423614692,1780260647000,-827.62411655,0.0003187,2]
[423614638,1780260647000,-482.64228996,0.00031277,2]
[423614693,1780260647000,-755.61735335,0.0003187,2]
[423614666,1780260647000,-5530.0,0.000314,5]
[423614665,1780260647000,-200.0,0.00031379,2]
[423614678,1780260647000,-387.0,0.00031769,30]
[423614656,1780260647000,-821.25304178,0.00031319,2]
[423614640,1780260647000,-159.8992,0.00031277,2]
[423614663,1780260647000,-200.0,0.00031353,2]
[423614633,1780260647000,-329.82409151,0.00031277,2]
[423614636,1780260647000,-268.15849662,0.00031277,2]
[423614631,1780260647000,-597.32328217,0.00031277,2]
[423614639,1780260647000,-590.52794988,0.00031277,2]
[423614642,1780260647000,-349.08950313,0.00031277,2]
[423614641,1780260647000,-560.49712527,0.00031277,2]
[423614643,1780260647000,-150.18483003,0.00031277,2]
[423614648,1780260647000,-594.71090719,0.00031277,2]
[423614650,1780260647000,-1040.61176409,0.00031277,2]
[423614645,1780260647000,-155.84289064,0.00031277,2]
[423614652,1780260647000,-300.13285425,0.00031277,2]
[423614647,1780260647000,-616.27392071,0.00031277,2]
[423614644,1780260647000,-573.00708804,0.00031277,2]
[423614651,1780260647000,-1080.4917983,0.00031277,2]
[423614657,1780260647000,-532.65276096,0.00031319,2]
[423614659,1780260647000,-764.49515167,0.00031321,2]
[423614658,1780260647000,-472.03184783,0.00031321,2]
[423614660,1780260647000,-678.66536041,0.00031321,2]
[423614655,1780260647000,-505.54127023,0.00031319,2]
[423614661,1780260647000,-590.10373488,0.00031321,2]
[423614662,1780260647000,-200.0,0.00031353,2]
[423614653,1780260647000,-530.18364758,0.00031319,2]
[423614654,1780260647000,-541.17498978,0.00031319,2]
[423614649,1780260647000,-632.23188074,0.00031277,2]
[423614646,1780260647000,-741.73284359,0.00031277,2]
[423614664,1780260647000,-200.0,0.00031353,2]
[423614740,1780260648000,-150.0,0.00032329,7]
[423614743,1780260648000,-150.0,0.00032361,7]
[423614739,1780260648000,-154.5593418,0.00032329,7]
[423614736,1780260648000,-150.0,0.00032279,7]
[423614735,1780260648000,-150.0,0.00032279,7]
[423614737,1780260648000,-154.5593418,0.00032293,7]
[423614733,1780260648000,-154.5593418,0.00032221,7]
[423614734,1780260648000,-154.5593418,0.00032257,7]
[423614732,1780260648000,-588.82423649,0.0003222,2]
[423614728,1780260648000,-154.5593418,0.00032185,7]
[423614720,1780260648000,-154.5593418,0.00032077,7]
[423614725,1780260648000,-7244.9602,0.00032137,30]
[423614738,1780260648000,-568.70081681,0.00032321,2]
[423614741,1780260648000,-2750.641,0.00032334,32]
[423614752,1780260648000,-154.5593418,0.00032472,7]
[423614744,1780260648000,-154.5593418,0.00032365,7]
[423614746,1780260648000,-340.5,0.000324,7]
[423614745,1780260648000,-150.0,0.0003237,7]
[423614747,1780260648000,-154.5593418,0.00032401,7]
[423614750,1780260648000,-588.82423649,0.00032443,2]
[423614749,1780260648000,-154.5593418,0.00032437,7]
[423614748,1780260648000,-3906.77,0.00032434,14]
[423614751,1780260648000,-150.0,0.00032461,7]
[423614754,1780260648000,-150.0,0.0003249,7]
[423614753,1780260648000,-621.0,0.00032477,7]
[423614757,1780260648000,-154.5593418,0.00032508,7]
[423614756,1780260648000,-1000.0,0.000325,7]
[423614755,1780260648000,-1000.0,0.000325,2]
[423614727,1780260648000,-150.0,0.00032167,7]
[423614742,1780260648000,-187.101,0.00032334,32]
[423614729,1780260648000,-150.0,0.00032188,7]
[423614696,1780260648000,-892.94602631,0.0003187,2]
[423614722,1780260648000,-150.0,0.00032097,7]
[423614758,1780260648000,-154.5593418,0.00032544,7]
[423614705,1780260648000,-621.0,0.00031943,7]
[423614703,1780260648000,-1350.61474788,0.0003187,2]
[423614700,1780260648000,-790.28985092,0.0003187,2]
[423614701,1780260648000,-1300.76470511,0.0003187,2]
[423614702,1780260648000,-1405.4476735,0.0003187,2]
[423614694,1780260648000,-820.79360475,0.0003187,2]
[423614697,1780260648000,-935.49252905,0.0003187,2]
[423614699,1780260648000,-770.34240089,0.0003187,2]
[423614695,1780260648000,-832.98539449,0.0003187,2]
[423614698,1780260648000,-927.16605449,0.0003187,2]
[423614704,1780260648000,-955.61893959,0.00031914,2]
[423614706,1780260648000,-3347.22,0.00032,14]
[423614707,1780260648000,-150.0,0.00032005,7]
[423614709,1780260648000,-150.0,0.00032005,7]
[423614708,1780260648000,-150.0,0.00032005,7]
[423614712,1780260648000,-150.0,0.00032005,7]
[423614724,1780260648000,-26897.0,0.00032131,2]
[423614730,1780260648000,-263.76,0.000322,12]
[423614723,1780260648000,-154.5593418,0.00032113,7]
[423614721,1780260648000,-1401.48309954,0.00032095,2]
[423614731,1780260648000,-512.3,0.0003221,5]
[423614718,1780260648000,-200.0,0.00032055,2]
[423614726,1780260648000,-154.5593418,0.00032149,7]
[423614719,1780260648000,-588.82423649,0.00032068,2]
[423614715,1780260648000,-150.0,0.00032005,7]
[423614717,1780260648000,-154.5593418,0.00032041,7]
[423614714,1780260648000,-154.5593418,0.00032005,7]
[423614713,1780260648000,-150.0,0.00032005,7]
[423614711,1780260648000,-150.0,0.00032005,7]
[423614710,1780260648000,-150.0,0.00032005,7]
[423614716,1780260648000,-150.0,0.00032005,7]
[423614759,1780260648000,-150.0,0.00032553,7]
[423614768,1780260648000,-588.82423649,0.00032669,2]
[423614771,1780260648000,-1686.5372082,0.00032691,2]
[423614792,1780260648000,-948.3478211,0.00032758,2]
[423614793,1780260648000,-154.5593418,0.0003276,7]
[423614799,1780260648000,-154.5593418,0.00032796,7]
[423614811,1780260648000,-500.0,0.00032877,2]
[423614801,1780260648000,-150.0,0.00032814,7]
[423614803,1780260648000,-150.0,0.00032826,7]
[423614806,1780260648000,-154.5593418,0.00032868,7]
[423614805,1780260648000,-212.02958337,0.00032849,4]
[423614802,1780260648000,-150.0,0.00032826,7]
[423614810,1780260648000,-500.0,0.00032877,2]
[423614804,1780260648000,-154.5593418,0.00032832,7]
[423614808,1780260648000,-231.54,0.00032877,2]
[423614807,1780260648000,-350.8,0.00032877,2]
[423614809,1780260648000,-544.36157832,0.00032877,2]
[423614797,1780260648000,-1097.0,0.00032769,30]
[423614800,1780260648000,-1146.7427275,0.00032804,2]
[423614813,1780260648000,-500.0,0.00032877,2]
[423614814,1780260648000,-500.0,0.00032877,2]
[423614815,1780260648000,-500.0,0.00032877,2]
[423614817,1780260648000,-500.0,0.00032877,10]
[423614816,1780260648000,-423.13003328,0.00032877,2]
[423614825,1780260648000,-154.5593418,0.00032904,7]
[423614819,1780260648000,-293.80344897,0.00032877,10]
[423614818,1780260648000,-500.0,0.00032877,10]
[423614821,1780260648000,-286.6,0.000329,120]
[423614820,1780260648000,-150.0,0.00032895,7]
[423614822,1780260648000,-636.09,0.000329,30]
[423614823,1780260648000,-313.21,0.000329,120]
[423614826,1780260648000,-150.0,0.00032917,7]
[423614761,1780260648000,-150.0,0.00032562,2]
[423614812,1780260648000,-500.0,0.00032877,2]
[423614794,1780260648000,-387.0,0.00032769,30]
[423614824,1780260648000,-274.93,0.000329,120]
[423614795,1780260648000,-481.0,0.00032769,30]
[423614796,1780260648000,-265.0,0.00032769,30]
[423614760,1780260648000,-150.0,0.00032553,7]
[423614762,1780260648000,-154.5593418,0.0003258,7]
[423614769,1780260648000,-154.5593418,0.00032688,7]
[423614763,1780260648000,-154.5593418,0.00032616,7]
[423614766,1780260648000,-154.5593418,0.00032652,7]
[423614770,1780260648000,-997.91037959,0.00032691,2]
[423614764,1780260648000,-2000.0,0.00032633,4]
[423614767,1780260648000,-150.0,0.00032652,7]
[423614772,1780260648000,-1620.73769745,0.00032691,2]
[423614773,1780260648000,-941.06101885,0.00032691,2]
[423614774,1780260648000,-1383.22650615,0.00032691,2]
[423614776,1780260648000,-950.22278562,0.00032691,2]
[423614775,1780260648000,-971.42233207,0.00032691,2]
[423614784,1780260648000,-778.0,0.00032748,30]
[423614765,1780260648000,-150.0,0.00032644,7]
[423614777,1780260648000,-150.0,0.00032717,7]
[423614779,1780260648000,-150.0,0.00032735,7]
[423614789,1780260648000,-1071.53523157,0.00032758,2]
[423614791,1780260648000,-1112.59926538,0.00032758,2]
[423614787,1780260648000,-906.74082402,0.00032758,2]
[423614788,1780260648000,-1560.91764613,0.00032758,2]
[423614785,1780260648000,-1039.00128978,0.00032758,2]
[423614798,1780260648000,-864.0,0.00032769,30]
[423614790,1780260648000,-1122.59103486,0.00032758,2]
[423614781,1780260648000,-187.0,0.00032748,30]
[423614783,1780260648000,-354.0,0.00032748,30]
[423614780,1780260648000,-506.0,0.00032748,30]
[423614782,1780260648000,-151.0,0.00032748,30]
[423614786,1780260648000,-993.14893986,0.00032758,2]
[423614778,1780260648000,-154.5593418,0.00032724,7]
[423614860,1780260649000,-154.5593418,0.00033191,7]
[423614862,1780260649000,-154.5593418,0.00033227,7]
[423614863,1780260649000,-154.5593418,0.00033263,7]
[423614865,1780260649000,-200.0,0.00033269,2]
[423614855,1780260649000,-540.237503,0.00033148,120]
[423614864,1780260649000,-200.0,0.00033269,2]
[423614857,1780260649000,-154.5593418,0.00033155,7]
[423614861,1780260649000,-315.64,0.000332,16]
[423614858,1780260649000,-150.0,0.00033191,7]
[423614856,1780260649000,-502.82253,0.00033148,120]
[423614859,1780260649000,-150.0,0.00033191,7]
[423614872,1780260649000,-200.0,0.00033269,2]
[423614867,1780260649000,-200.0,0.00033269,2]
[423614869,1780260649000,-200.0,0.00033269,2]
[423614879,1780260649000,-200.0,0.00033269,2]
[423614868,1780260649000,-200.0,0.00033269,2]
[423614870,1780260649000,-200.0,0.00033269,2]
[423614873,1780260649000,-200.0,0.00033269,2]
[423614871,1780260649000,-200.0,0.00033269,2]
[423614876,1780260649000,-200.0,0.00033269,2]
[423614874,1780260649000,-200.0,0.00033269,2]
[423614854,1780260649000,-150.0,0.00033137,7]
[423614875,1780260649000,-200.0,0.00033269,2]
[423614866,1780260649000,-200.0,0.00033269,2]
[423614853,1780260649000,-163.0,0.00033121,11]
[423614830,1780260649000,-400.0,0.00032955,2]
[423614851,1780260649000,-154.5593418,0.00033119,7]
[423614877,1780260649000,-200.0,0.00033269,2]
[423614827,1780260649000,-154.5593418,0.00032939,7]
[423614836,1780260649000,-154.5593418,0.00032975,7]
[423614838,1780260649000,-362.06902151,0.00033,2]
[423614839,1780260649000,-220.14,0.00033,14]
[423614837,1780260649000,-150.0,0.00032975,7]
[423614835,1780260649000,-246.09559064,0.00032955,2]
[423614828,1780260649000,-400.0,0.00032955,2]
[423614829,1780260649000,-400.0,0.00032955,2]
[423614831,1780260649000,-403.93373113,0.00032955,2]
[423614834,1780260649000,-419.05891266,0.00032955,2]
[423614849,1780260649000,-150.0,0.000331,7]
[423614832,1780260649000,-407.0,0.00032955,2]
[423614840,1780260649000,-529.01602102,0.00033,3]
[423614842,1780260649000,-621.0,0.00033011,8]
[423614852,1780260649000,-163.0,0.00033121,11]
[423614841,1780260649000,-150.0,0.00033009,7]
[423614844,1780260649000,-350.0,0.00033014,5]
[423614846,1780260649000,-150.0,0.00033072,7]
[423614843,1780260649000,-154.5593418,0.00033011,7]
[423614845,1780260649000,-154.5593418,0.00033047,7]
[423614850,1780260649000,-340.5,0.000331,30]
[423614847,1780260649000,-154.5593418,0.00033083,7]
[423614848,1780260649000,-150.0,0.000331,7]
[423614833,1780260649000,-407.0,0.00032955,2]
[423614878,1780260649000,-200.0,0.00033269,2]
[423614885,1780260649000,-200.0,0.00033269,2]
[423614882,1780260649000,-200.0,0.00033269,2]
[423614911,1780260649000,-200.0,0.00033269,2]
[423614909,1780260649000,-200.0,0.00033269,2]
[423614913,1780260649000,-200.0,0.00033269,2]
[423614915,1780260649000,-200.0,0.00033269,2]
[423614914,1780260649000,-200.0,0.00033269,2]
[423614917,1780260649000,-200.0,0.00033269,2]
[423614916,1780260649000,-200.0,0.00033269,2]
[423614920,1780260649000,-500.0,0.00033269,2]
[423614919,1780260649000,-154.0,0.00033269,2]
[423614922,1780260649000,-500.0,0.00033269,2]
[423614918,1780260649000,-200.0,0.00033269,2]
[423614908,1780260649000,-200.0,0.00033269,2]
[423614921,1780260649000,-500.0,0.00033269,2]
[423614924,1780260649000,-500.0,0.00033269,2]
[423614927,1780260649000,-150.0,0.00033282,7]
[423614926,1780260649000,-530.0,0.00033269,2]
[423614934,1780260649000,-150.0,0.00033373,7]
[423614931,1780260649000,-3347.22,0.000333,14]
[423614930,1780260649000,-150.0,0.00033299,7]
[423614932,1780260649000,-154.5593418,0.00033335,7]
[423614933,1780260649000,-154.5593418,0.0003337,7]
[423614928,1780260649000,-150.0,0.00033288,7]
[423614929,1780260649000,-154.5593418,0.00033299,7]
[423614880,1780260649000,-200.0,0.00033269,2]
[423614925,1780260649000,-500.0,0.00033269,2]
[423614907,1780260649000,-200.0,0.00033269,2]
[423614923,1780260649000,-500.0,0.00033269,2]
[423614910,1780260649000,-200.0,0.00033269,2]
[423614890,1780260649000,-200.0,0.00033269,2]
[423614906,1780260649000,-200.0,0.00033269,2]
[423614891,1780260649000,-200.0,0.00033269,2]
[423614881,1780260649000,-166.0,0.00033269,2]
[423614883,1780260649000,-200.0,0.00033269,2]
[423614884,1780260649000,-200.0,0.00033269,2]
[423614886,1780260649000,-200.0,0.00033269,2]
[423614889,1780260649000,-200.0,0.00033269,2]
[423614888,1780260649000,-200.0,0.00033269,2]
[423614892,1780260649000,-200.0,0.00033269,2]
[423614893,1780260649000,-200.0,0.00033269,2]
[423614894,1780260649000,-200.0,0.00033269,2]
[423614887,1780260649000,-200.0,0.00033269,2]
[423614904,1780260649000,-200.0,0.00033269,2]
[423614905,1780260649000,-200.0,0.00033269,2]
[423614895,1780260649000,-200.0,0.00033269,2]
[423614912,1780260649000,-200.0,0.00033269,2]
[423614903,1780260649000,-200.0,0.00033269,2]
[423614901,1780260649000,-200.0,0.00033269,2]
[423614902,1780260649000,-200.0,0.00033269,2]
[423614898,1780260649000,-200.0,0.00033269,2]
[423614897,1780260649000,-200.0,0.00033269,2]
[423614899,1780260649000,-200.0,0.00033269,2]
[423614896,1780260649000,-200.0,0.00033269,2]
[423614900,1780260649000,-200.0,0.00033269,2]
[423614972,1780260650000,-387.0,0.00033769,30]
[423614973,1780260650000,-481.0,0.00033769,30]
[423614974,1780260650000,-265.0,0.00033769,30]
[423614975,1780260650000,-1097.0,0.00033769,30]
[423614971,1780260650000,-154.5593418,0.00033766,7]
[423614967,1780260650000,-187.0,0.00033748,30]
[423614968,1780260650000,-151.0,0.00033748,30]
[423614990,1780260650000,-150.0,0.0003392,7]
[423614966,1780260650000,-506.0,0.00033748,30]
[423614970,1780260650000,-778.0,0.00033748,30]
[423614976,1780260650000,-864.0,0.00033769,30]
[423614969,1780260650000,-354.0,0.00033748,30]
[423614977,1780260650000,-35032.9760675,0.00033772,2]
[423614988,1780260650000,-340.5,0.000339,30]
[423614981,1780260650000,-150.0,0.00033784,7]
[423614979,1780260650000,-150.0,0.00033784,7]
[423614982,1780260650000,-154.5593418,0.00033802,7]
[423614978,1780260650000,-150.0,0.00033784,7]
[423614983,1780260650000,-150.0,0.00033829,7]
[423614994,1780260650000,-350.0,0.00033973,5]
[423614985,1780260650000,-242.29,0.00033852,7]
[423614984,1780260650000,-154.5593418,0.00033837,7]
[423614986,1780260650000,-154.5593418,0.00033873,7]
[423614987,1780260650000,-150.0,0.00033879,7]
[423614992,1780260650000,-154.5593418,0.00033945,7]
[423614965,1780260650000,-150.0,0.00033738,7]
[423614980,1780260650000,-150.0,0.00033784,7]
[423614961,1780260650000,-154.5593418,0.00033694,7]
[423614937,1780260650000,-1500.0,0.000334,7]
[423614962,1780260650000,-319.94370205,0.0003371,2]
[423614936,1780260650000,-966.33,0.000334,7]
[423614935,1780260650000,-150.0,0.00033373,7]
[423614938,1780260650000,-154.5593418,0.00033406,7]
[423614940,1780260650000,-150.0,0.00033436,7]
[423614941,1780260650000,-154.5593418,0.00033442,7]
[423614939,1780260650000,-150.0,0.00033428,7]
[423614942,1780260650000,-150.0,0.0003346,7]
[423614944,1780260650000,-154.5593418,0.00033478,7]
[423614945,1780260650000,-154.5593418,0.00033514,7]
[423614943,1780260650000,-150.0,0.00033464,7]
[423614946,1780260650000,-241.03,0.00033517,7]
[423614947,1780260650000,-150.0,0.00033526,120]
[423614964,1780260650000,-150.0,0.00033732,7]
[423614948,1780260650000,-621.0,0.00033545,9]
[423614953,1780260650000,-154.5593418,0.00033586,7]
[423614949,1780260650000,-154.5593418,0.0003355,7]
[423614951,1780260650000,-1000.92020843,0.00033572,2]
[423614952,1780260650000,-150.0,0.00033584,7]
[423614958,1780260650000,-154.5593418,0.00033658,7]
[423614955,1780260650000,-150.0,0.00033622,7]
[423614957,1780260650000,-150.0,0.00033647,7]
[423614954,1780260650000,-154.5593418,0.00033622,7]
[423614956,1780260650000,-150.0,0.00033647,7]
[423614959,1780260650000,-243.81,0.00033685,7]
[423614960,1780260650000,-763.1,0.00033693,30]